[Event "Polofinale MCR junioru 2023"]
[Site "Czech Republic"]
[Date "2023.11.12"]
[Round "2.21"]
[White "Stocek, Martin"]
[Black "Valdman, Jakub"]
[Result "0-1"]
[TimeControl "90 min per 40 moves + 15 min + 30 sec / move from move 1"]
[WhiteFideId "380121"]
[BlackFideId "23718196"]
[WhiteElo "2125"]
[BlackElo "1594"]

1. d4 {[%clk 01:30:49]} {[%emt 00:00:09]} Nf6 {[%clk 01:30:49]} {[%emt
00:00:12]} 2. c4 {[%clk 01:31:12]} {[%emt 00:00:07]} c5 {[%clk 01:31:16]}
{[%emt 00:00:04]} 3. d5 {[%clk 01:31:39]} {[%emt 00:00:03]} e6 {[%clk
01:31:39]} {[%emt 00:00:06]} 4. Nc3 {[%clk 01:31:49]} {[%emt 00:00:20]} exd5
{[%clk 01:31:58]} {[%emt 00:00:12]} 5. cxd5 {[%clk 01:32:13]} {[%emt 00:00:06]}
d6 {[%clk 01:32:12]} {[%emt 00:00:16]} 6. Nf3 {[%clk 01:30:24]} {[%emt
00:02:19]} g6 {[%clk 01:30:52]} {[%emt 00:01:50]} 7. g3 {[%clk 01:30:36]}
{[%emt 00:00:17]} Bg7 {[%clk 01:29:48]} {[%emt 00:01:34]} 8. Bg2 {[%clk
01:30:57]} {[%emt 00:00:09]} O-O {[%emt 00:00:36]} 9. O-O {[%clk 01:31:21]}
{[%emt 00:00:01]} Re8 {[%clk 01:25:41]} {[%emt 00:04:37]} 10. Nd2 {[%clk
01:28:44]} {[%emt 00:03:06]} a6 {[%clk 01:15:26]} {[%emt 00:10:46]} 11. a4
{[%clk 01:26:05]} {[%emt 00:03:08]} Nbd7 {[%clk 01:07:28]} {[%emt 00:08:28]} 12.
e4 {[%clk 01:08:36]} {[%emt 00:17:59]} Rb8 {[%clk 00:49:09]} {[%emt 00:18:49]}
13. Nc4 {[%clk 00:58:13]} {[%emt 00:10:52]} Ne5 {[%clk 00:42:01]} {[%emt
00:07:39]} 14. Na3 {[%clk 00:45:30]} {[%emt 00:13:13]} Qb6 {[%clk 00:37:21]}
{[%emt 00:05:10]} 15. Kh1 {[%clk 00:37:30]} {[%emt 00:08:29]} c4 {[%clk
00:30:46]} {[%emt 00:07:06]} 16. Qc2 {[%clk 00:33:51]} {[%emt 00:04:09]} Qc7
{[%clk 00:25:34]} {[%emt 00:05:44]} 17. Be3 {[%clk 00:30:32]} {[%emt 00:03:49]}
Bd7 {[%clk 00:24:58]} {[%emt 00:01:06]} 18. a5 {[%clk 00:29:46]} {[%emt
00:01:16]} Qxa5 {[%clk 00:21:17]} {[%emt 00:04:11]} 19. Nxc4 {[%clk 00:28:34]}
{[%emt 00:01:42]} Qb4 {[%clk 00:20:10]} {[%emt 00:01:37]} 20. Nxe5 {[%clk
00:21:01]} {[%emt 00:08:02]} Rxe5 {[%clk 00:19:56]} {[%emt 00:00:44]} 21. Ra3
{[%clk 00:16:25]} {[%emt 00:05:06]} Bb5 {[%clk 00:13:35]} {[%emt 00:06:51]} 22.
Nxb5 {[%clk 00:12:43]} {[%emt 00:04:11]} Qxb5 {[%clk 00:14:03]} {[%emt
00:00:03]} 23. Qc7 {[%clk 00:10:55]} {[%emt 00:02:17]} Rbe8 {[%clk 00:14:04]}
{[%emt 00:00:30]} 24. Bd4 {[%clk 00:04:22]} {[%emt 00:07:04]} Rxe4 {[%clk
00:12:42]} {[%emt 00:01:51]} 25. Bxf6 {[%clk 00:04:19]} {[%emt 00:00:33]} Bxf6
{[%clk 00:12:53]} {[%emt 00:00:19]} 26. Qxd6 {[%clk 00:03:54]} {[%emt
00:00:55]} Be7 {[%clk 00:11:05]} {[%emt 00:02:17]} 27. Qc7 {[%clk 00:03:57]}
{[%emt 00:00:27]} Bxa3 {[%clk 00:11:26]} {[%emt 00:00:10]} 28. bxa3 {[%clk
00:04:26]} Re1 {[%clk 00:07:01]} {[%emt 00:04:54]} 29. Kg1 {[%clk 00:04:55]}
{[%emt 00:00:01]} Rxf1+ {[%clk 00:07:16]} {[%emt 00:00:15]} 30. Bxf1 {[%clk
00:05:17]} {[%emt 00:00:06]} Qxd5 {[%clk 00:07:43]} {[%emt 00:00:04]} 31. Qc3
{[%clk 00:05:29]} {[%emt 00:00:18]} Qc6 {[%clk 00:07:30]} {[%emt 00:00:43]} 32.
Qb4 {[%clk 00:05:36]} {[%emt 00:00:23]} b5 {[%clk 00:07:06]} {[%emt 00:00:54]}
33. h4 {[%clk 00:06:00]} {[%emt 00:00:05]} Re4 {[%clk 00:07:00]} {[%emt
00:00:36]} 34. Qd2 {[%clk 00:06:21]} {[%emt 00:00:08]} Ra4 {[%clk 00:06:37]}
{[%emt 00:00:55]} 35. h5 {[%clk 00:06:23]} {[%emt 00:00:27]} gxh5 {[%clk
00:06:00]} {[%emt 00:01:07]} 36. Bd3 {[%clk 00:05:03]} {[%emt 00:01:50]} h6
{[%clk 00:04:41]} {[%emt 00:01:49]} 37. Qe3 {[%clk 00:04:45]} {[%emt 00:00:48]}
Qe6 {[%clk 00:02:11]} {[%emt 00:03:00]} 38. Qf3 {[%clk 00:04:54]} {[%emt
00:00:20]} Rxa3 {[%clk 00:01:44]} {[%emt 00:00:57]} 39. Bh7+ {[%clk 00:05:18]}
{[%emt 00:00:06]} Kxh7 {[%clk 00:02:14]} 40. Qxa3 {[%clk 00:05:41]} {[%emt
00:00:07]} Qe1+ {[%clk 00:00:54]} {[%emt 00:01:50]} 41. Kg2 {[%clk 00:06:01]}
{[%emt 00:00:09]} Qe4+ {[%clk 00:00:38]} {[%emt 00:00:46]} 42. Kg1 {[%clk
00:05:30]} {[%emt 00:01:02]} h4 {[%clk 00:12:31]} {[%emt 00:03:38]} 43. gxh4
{[%clk 00:19:33]} {[%emt 00:01:27]} Qxh4 {[%clk 00:12:34]} {[%emt 00:00:27]} 44.
Qxa6 {[%clk 00:19:00]} {[%emt 00:01:03]} Qg5+ {[%clk 00:08:11]} {[%emt
00:04:53]} 45. Kf1 {[%clk 00:19:27]} {[%emt 00:00:03]} Qf5 {[%clk 00:08:08]}
{[%emt 00:00:33]} 46. Qb7 {[%clk 00:19:21]} {[%emt 00:00:35]} h5 {[%clk
00:08:19]} {[%emt 00:00:19]} 47. Kg2 {[%clk 00:17:41]} {[%emt 00:02:10]} h4
{[%clk 00:07:49]} {[%emt 00:01:00]} 48. Qe7 {[%clk 00:16:46]} {[%emt 00:01:25]}
h3+ {[%clk 00:06:46]} {[%emt 00:01:34]} 49. Kh2 {[%clk 00:15:09]} {[%emt
00:02:06]} Qf3 {[%clk 00:05:40]} {[%emt 00:01:37]} 50. Qh4+ {[%clk 00:13:15]}
{[%emt 00:02:23]} Kg6 {[%clk 00:06:02]} {[%emt 00:00:08]} 51. Qg5+ {[%clk
00:13:38]} {[%emt 00:00:08]} Kxg5 {[%clk 00:05:55]} {[%emt 00:00:08]} 0-1

[Event "Polofinale MCR junioru 2023"]
[Site "Czech Republic"]
[Date "2023.11.12"]
[Round "2.22"]
[White "Benes, Jachym"]
[Black "Mrazek, Roman"]
[Result "1/2-1/2"]
[TimeControl "90 min per 40 moves + 15 min + 30 sec / move from move 1"]
[WhiteFideId "23710870"]
[BlackFideId "23707062"]
[WhiteElo "1950"]
[BlackElo "1866"]

1. d4 {[%clk 01:26:48]} {[%emt 00:04:11]} d5 {[%clk 01:30:48]} {[%emt
00:00:12]} 2. c4 {[%clk 01:27:01]} {[%emt 00:00:18]} c6 {[%clk 01:31:07]}
{[%emt 00:00:10]} 3. Nc3 {[%clk 01:27:27]} {[%emt 00:00:04]} Nf6 {[%clk
01:31:31]} {[%emt 00:00:06]} 4. cxd5 {[%clk 01:25:34]} {[%emt 00:02:23]} cxd5
{[%clk 01:31:46]} {[%emt 00:00:14]} 5. f3 {[%clk 01:25:59]} {[%emt 00:00:05]}
Nc6 {[%clk 01:29:23]} {[%emt 00:02:53]} 6. e4 {[%clk 01:26:08]} {[%emt
00:00:22]} e6 {[%clk 01:28:58]} {[%emt 00:00:55]} 7. e5 {[%clk 01:14:02]}
{[%emt 00:12:36]} Nd7 {[%clk 01:28:09]} {[%emt 00:01:18]} 8. f4 {[%clk
01:14:27]} {[%emt 00:00:06]} Be7 {[%clk 01:27:46]} {[%emt 00:00:53]} 9. Nf3
{[%clk 01:14:38]} {[%emt 00:00:20]} O-O {[%clk 01:26:40]} {[%emt 00:01:35]} 10.
Be2 {[%clk 01:12:44]} {[%emt 00:02:25]} a6 {[%clk 01:24:23]} {[%emt 00:02:47]}
11. a4 {[%clk 01:10:11]} {[%emt 00:03:03]} Bb4 {[%clk 01:11:53]} {[%emt
00:13:00]} 12. O-O {[%clk 01:09:06]} {[%emt 00:01:35]} f5 {[%clk 01:10:06]}
{[%emt 00:02:18]} 13. exf6 {[%clk 01:05:32]} {[%emt 00:04:04]} Nxf6 {[%clk
01:09:37]} {[%emt 00:00:59]} 14. Bd3 {[%clk 01:00:23]} {[%emt 00:05:38]} Qb6
{[%clk 01:01:37]} {[%emt 00:08:31]} 15. Bc2 {[%clk 00:57:24]} {[%emt 00:03:29]}
Bd7 {[%clk 01:00:10]} {[%emt 00:01:57]} 16. Kh1 {[%clk 00:41:27]} {[%emt
00:16:27]} Rae8 {[%clk 00:58:02]} {[%emt 00:02:37]} 17. Be3 {[%clk 00:31:43]}
{[%emt 00:10:14]} g6 {[%clk 00:50:11]} {[%emt 00:08:20]} 18. Ne5 {[%clk
00:26:42]} {[%emt 00:05:32]} Re7 {[%clk 00:37:30]} {[%emt 00:13:09]} 19. Ne2
{[%clk 00:14:45]} {[%emt 00:12:29]} Nxe5 {[%clk 00:31:13]} {[%emt 00:06:47]} 20.
fxe5 {[%clk 00:15:05]} {[%emt 00:00:10]} Ng4 {[%clk 00:30:53]} {[%emt
00:00:48]} 21. Rxf8+ {[%clk 00:12:05]} {[%emt 00:03:32]} Kxf8 {[%clk 00:31:19]}
{[%emt 00:00:04]} 22. Qd3 {[%clk 00:10:33]} {[%emt 00:02:02]} Rf7 {[%clk
00:25:58]} {[%emt 00:05:48]} 23. h3 {[%clk 00:10:53]} {[%emt 00:00:13]} Nxe3
{[%clk 00:24:31]} {[%emt 00:01:58]} 24. Qxe3 {[%clk 00:11:19]} {[%emt
00:00:04]} Kg7 {[%clk 00:23:46]} {[%emt 00:01:15]} 25. Rd1 {[%clk 00:06:47]}
{[%emt 00:05:02]} Be7 {[%clk 00:22:49]} {[%emt 00:01:25]} 26. b3 {[%clk
00:06:35]} {[%emt 00:00:43]} Qd8 {[%clk 00:22:17]} {[%emt 00:00:59]} 27. Qg3
{[%clk 00:05:37]} {[%emt 00:01:30]} Qf8 {[%clk 00:21:07]} {[%emt 00:01:41]}
1/2-1/2

[Event "Polofinale MCR junioru 2023"]
[Site "Czech Republic"]
[Date "2023.11.12"]
[Round "2.23"]
[White "Janous, Marek"]
[Black "Mydlar, Matej"]
[Result "1-0"]
[TimeControl "90 min per 40 moves + 15 min + 30 sec / move from move 1"]
[WhiteFideId "23709650"]
[BlackFideId "23735074"]
[WhiteElo "2098"]
[BlackElo "1809"]

1. e4 {[%clk 01:30:16]} {[%emt 00:00:43]} c5 {[%clk 01:30:46]} {[%emt
00:00:14]} 2. Nf3 {[%clk 01:30:02]} {[%emt 00:00:44]} d6 {[%clk 01:29:56]}
{[%emt 00:01:20]} 3. Bb5+ {[%clk 01:29:02]} {[%emt 00:01:30]} Nc6 {[%clk
01:27:50]} {[%emt 00:02:36]} 4. d4 {[%clk 01:23:41]} {[%emt 00:05:51]} cxd4
{[%clk 01:26:16]} {[%emt 00:02:05]} 5. Qxd4 {[%clk 01:15:46]} {[%emt 00:08:24]}
Bd7 {[%clk 01:17:59]} {[%emt 00:08:46]} 6. Bxc6 {[%clk 01:15:59]} {[%emt
00:00:19]} bxc6 {[%clk 01:17:25]} {[%emt 00:01:03]} 7. c4 {[%clk 01:11:19]}
{[%emt 00:05:09]} e5 {[%clk 01:11:03]} {[%emt 00:06:53]} 8. Qd3 {[%clk
01:05:57]} {[%emt 00:05:53]} Be6 {[%clk 01:08:28]} {[%emt 00:03:04]} 9. O-O
{[%clk 01:04:03]} {[%emt 00:02:24]} Qc7 {[%clk 01:06:13]} {[%emt 00:02:46]} 10.
b3 {[%clk 00:58:09]} {[%emt 00:06:24]} Nf6 {[%clk 01:03:31]} {[%emt 00:03:12]}
11. Nc3 {[%clk 00:54:45]} {[%emt 00:03:54]} Be7 {[%clk 00:58:44]} {[%emt
00:05:17]} 12. Bg5 {[%clk 00:47:49]} {[%emt 00:07:26]} O-O {[%clk 00:56:41]}
{[%emt 00:02:32]} 13. Rfd1 {[%clk 00:46:32]} {[%emt 00:01:49]} Rfd8 {[%clk
00:54:09]} {[%emt 00:02:49]} 14. Bxf6 {[%clk 00:39:28]} {[%emt 00:07:46]} Bxf6
{[%clk 00:48:40]} {[%emt 00:05:59]} 15. Rac1 {[%clk 00:39:43]} {[%emt
00:00:16]} Qb7 {[%clk 00:41:28]} {[%emt 00:07:40]} 16. h3 {[%clk 00:38:34]}
{[%emt 00:01:40]} g6 {[%clk 00:31:06]} {[%emt 00:10:52]} 17. Qe3 {[%clk
00:29:19]} {[%emt 00:09:45]} Qe7 {[%clk 00:27:15]} {[%emt 00:04:21]} 18. Rd3
{[%clk 00:25:52]} {[%emt 00:03:57]} Bg7 {[%clk 00:25:14]} {[%emt 00:02:30]} 19.
Rcd1 {[%clk 00:23:36]} {[%emt 00:02:47]} Rd7 {[%clk 00:14:12]} {[%emt
00:11:33]} 20. c5 {[%clk 00:13:04]} {[%emt 00:11:01]} Rad8 {[%clk 00:09:59]}
{[%emt 00:04:41]} 21. cxd6 {[%clk 00:12:31]} {[%emt 00:00:35]} Rxd6 {[%clk
00:10:20]} {[%emt 00:00:08]} 22. Qc5 {[%clk 00:10:38]} {[%emt 00:02:53]} Rxd3
{[%clk 00:06:16]} {[%emt 00:04:35]} 23. Qxe7 {[%clk 00:10:59]} {[%emt
00:00:07]} Rxd1+ {[%clk 00:06:45]} {[%emt 00:00:03]} 24. Nxd1 {[%clk 00:11:23]}
{[%emt 00:00:06]} Rxd1+ {[%clk 00:07:12]} {[%emt 00:00:03]} 25. Kh2 {[%clk
00:11:46]} {[%emt 00:00:07]} Bf8 {[%clk 00:07:13]} {[%emt 00:00:29]} 26. Qxa7
{[%clk 00:11:00]} {[%emt 00:01:15]} c5 {[%clk 00:06:39]} {[%emt 00:01:04]} 27.
Ng5 {[%clk 00:09:36]} {[%emt 00:01:54]} Bd7 {[%clk 00:06:45]} {[%emt 00:00:24]}
28. Qb8 {[%clk 00:07:51]} {[%emt 00:02:15]} Be6 {[%clk 00:04:31]} {[%emt
00:02:45]} 29. Nxe6 {[%clk 00:06:30]} {[%emt 00:01:52]} fxe6 {[%clk 00:04:55]}
{[%emt 00:00:06]} 30. Qe8 {[%clk 00:06:51]} {[%emt 00:00:08]} Rd6 {[%clk
00:05:10]} {[%emt 00:00:16]} 31. Qc8 {[%clk 00:07:15]} {[%emt 00:00:05]} Rb6
{[%clk 00:04:31]} {[%emt 00:01:10]} 32. Qc7 {[%clk 00:07:31]} {[%emt 00:00:12]}
Ra6 {[%clk 00:04:17]} {[%emt 00:00:47]} 33. a4 {[%clk 00:07:53]} {[%emt
00:00:07]} 1-0

[Event "Polofinale MCR junioru 2023"]
[Site "Czech Republic"]
[Date "2023.11.12"]
[Round "2.24"]
[White "Bezdek, Tomas"]
[Black "Hampl, David"]
[Result "1-0"]
[TimeControl "90 min per 40 moves + 15 min + 30 sec / move from move 1"]
[WhiteFideId "23733551"]
[BlackFideId "398802"]
[WhiteElo "2078"]
[BlackElo "1801"]

1. e4 {[%clk 01:30:58]} c6 {[%clk 01:30:51]} {[%emt 00:00:10]} 2. d4 {[%clk
01:31:19]} {[%emt 00:00:09]} d5 {[%clk 01:31:11]} {[%emt 00:00:10]} 3. exd5
{[%clk 01:31:40]} {[%emt 00:00:09]} cxd5 {[%clk 01:31:35]} {[%emt 00:00:06]} 4.
Bd3 {[%clk 01:32:06]} {[%emt 00:00:04]} Nc6 {[%clk 01:31:37]} {[%emt 00:00:29]}
5. c3 {[%clk 01:32:31]} {[%emt 00:00:05]} g6 {[%clk 01:30:58]} {[%emt
00:01:09]} 6. Bf4 {[%clk 01:32:55]} {[%emt 00:00:06]} Bg7 {[%clk 01:30:55]}
{[%emt 00:00:34]} 7. Nf3 {[%clk 01:33:08]} {[%emt 00:00:16]} Nf6 {[%clk
01:30:28]} {[%emt 00:00:58]} 8. h3 {[%clk 01:33:22]} {[%emt 00:00:16]} O-O
{[%clk 01:30:36]} {[%emt 00:00:22]} 9. O-O {[%clk 01:33:43]} {[%emt 00:00:08]}
a6 {[%clk 01:29:10]} {[%emt 00:01:56]} 10. Nbd2 {[%clk 01:33:12]} {[%emt
00:01:01]} b5 {[%clk 01:27:40]} {[%emt 00:02:01]} 11. b4 {[%clk 01:31:18]}
{[%emt 00:02:24]} Nd7 {[%clk 01:21:09]} {[%emt 00:07:02]} 12. a4 {[%clk
01:24:57]} {[%emt 00:06:51]} e5 {[%clk 01:14:27]} {[%emt 00:07:11]} 13. axb5
{[%clk 01:20:43]} {[%emt 00:04:44]} exf4 {[%clk 01:10:27]} {[%emt 00:04:30]} 14.
bxc6 {[%clk 01:20:58]} {[%emt 00:00:15]} Nb6 {[%clk 01:09:46]} {[%emt
00:01:11]} 15. Nb3 {[%clk 01:16:50]} {[%emt 00:04:38]} Nc4 {[%clk 01:04:06]}
{[%emt 00:06:10]} 16. Bxc4 {[%clk 01:06:39]} {[%emt 00:10:41]} dxc4 {[%clk
01:04:32]} {[%emt 00:00:03]} 17. Nc5 {[%clk 01:06:54]} {[%emt 00:00:14]} Qd5
{[%clk 00:59:42]} {[%emt 00:05:20]} 18. b5 {[%clk 01:05:41]} {[%emt 00:01:44]}
Rb8 {[%clk 00:57:19]} {[%emt 00:02:54]} 19. bxa6 {[%clk 01:02:35]} {[%emt
00:03:36]} Qxc6 {[%clk 00:55:29]} {[%emt 00:02:20]} 20. Nd2 {[%clk 00:58:57]}
{[%emt 00:04:08]} Be6 {[%clk 00:50:31]} {[%emt 00:05:28]} 21. Qa4 {[%clk
00:55:17]} {[%emt 00:04:10]} Rfc8 {[%clk 00:44:16]} {[%emt 00:06:44]} 22. Qxc6
{[%clk 00:53:49]} {[%emt 00:01:59]} Rxc6 {[%clk 00:44:42]} {[%emt 00:00:04]} 23.
Nxe6 {[%clk 00:54:09]} {[%emt 00:00:10]} fxe6 {[%clk 00:44:11]} {[%emt
00:01:01]} 24. a7 {[%clk 00:54:32]} {[%emt 00:00:07]} Ra8 {[%clk 00:44:25]}
{[%emt 00:00:16]} 25. Rfb1 {[%clk 00:54:53]} {[%emt 00:00:09]} Rcc8 {[%clk
00:43:57]} {[%emt 00:00:59]} 26. Nxc4 {[%clk 00:54:43]} {[%emt 00:00:40]} Rxc4
{[%clk 00:30:24]} {[%emt 00:14:03]} 27. Rb8+ {[%clk 00:54:42]} {[%emt
00:00:30]} Rc8 {[%clk 00:30:40]} {[%emt 00:00:14]} 28. Rxc8+ {[%clk 00:55:04]}
{[%emt 00:00:08]} Rxc8 {[%clk 00:31:01]} {[%emt 00:00:08]} 29. Rb1 {[%clk
00:55:24]} {[%emt 00:00:10]} Bxd4 {[%clk 00:29:04]} {[%emt 00:02:28]} 30. cxd4
{[%clk 00:55:37]} {[%emt 00:00:17]} 1-0

[Event "Polofinale MCR junioru 2023"]
[Site "Czech Republic"]
[Date "2023.11.12"]
[Round "2.25"]
[White "Bohacek, Jan Andrej"]
[Black "Jurok, Vojtech"]
[Result "1-0"]
[TimeControl "90 min per 40 moves + 15 min + 30 sec / move from move 1"]
[WhiteFideId "23727357"]
[BlackFideId "23741023"]
[WhiteElo "2066"]
[BlackElo "1801"]

1. d4 {[%clk 01:30:58]} {[%emt 00:00:01]} Nf6 {[%clk 01:30:41]} {[%emt
00:00:19]} 2. Nc3 {[%clk 01:31:19]} {[%emt 00:00:09]} d5 {[%clk 01:30:43]}
{[%emt 00:00:28]} 3. Bf4 {[%clk 01:31:43]} {[%emt 00:00:06]} c6 {[%clk
01:30:54]} {[%emt 00:00:19]} 4. e3 {[%clk 01:31:53]} {[%emt 00:00:20]} Bf5
{[%clk 01:29:40]} {[%emt 00:01:43]} 5. f3 {[%clk 01:32:17]} {[%emt 00:00:06]}
h5 {[%clk 01:29:40]} {[%emt 00:00:30]} 6. Bd3 {[%clk 01:30:15]} {[%emt
00:02:31]} Bxd3 {[%clk 01:26:47]} {[%emt 00:03:24]} 7. cxd3 {[%clk 01:30:37]}
{[%emt 00:00:08]} e6 {[%clk 01:24:29]} {[%emt 00:02:49]} 8. e4 {[%clk
01:22:22]} {[%emt 00:08:45]} c5 {[%clk 01:15:44]} {[%emt 00:09:14]} 9. Qa4+
{[%clk 00:58:35]} {[%emt 00:24:17]} Nc6 {[%clk 01:06:22]} {[%emt 00:09:52]} 10.
Nb5 {[%clk 00:52:32]} {[%emt 00:06:34]} Rc8 {[%clk 01:03:58]} {[%emt 00:02:54]}
11. Nxa7 {[%clk 00:47:26]} {[%emt 00:05:37]} Ra8 {[%clk 01:03:33]} {[%emt
00:00:54]} 12. Nxc6 {[%clk 00:47:34]} {[%emt 00:00:23]} Rxa4 {[%clk 01:02:24]}
{[%emt 00:01:39]} 13. Nxd8 {[%clk 00:47:57]} {[%emt 00:00:07]} Kxd8 {[%clk
01:02:02]} {[%emt 00:00:52]} 14. dxc5 {[%clk 00:47:22]} {[%emt 00:01:05]} Bxc5
{[%clk 01:00:03]} {[%emt 00:02:29]} 15. Ne2 {[%clk 00:46:35]} {[%emt 00:01:16]}
Kd7 {[%clk 00:53:39]} {[%emt 00:06:55]} 16. Nc3 {[%clk 00:42:13]} {[%emt
00:04:52]} Rb4 {[%clk 00:49:09]} {[%emt 00:04:59]} 17. b3 {[%clk 00:37:37]}
{[%emt 00:05:08]} Bd4 {[%clk 00:45:04]} {[%emt 00:04:34]} 18. Bd2 {[%clk
00:36:40]} {[%emt 00:01:27]} Rb6 {[%clk 00:40:26]} {[%emt 00:05:07]} 19. Rc1
{[%clk 00:28:45]} {[%emt 00:08:24]} Rc8 {[%clk 00:35:36]} {[%emt 00:05:22]} 20.
Ke2 {[%clk 00:25:13]} {[%emt 00:04:01]} Rbc6 {[%clk 00:21:18]} {[%emt
00:14:48]} 21. Nb5 {[%clk 00:25:09]} {[%emt 00:00:35]} Bb2 {[%clk 00:15:37]}
{[%emt 00:06:10]} 22. Rxc6 {[%clk 00:23:38]} {[%emt 00:02:02]} Rxc6 {[%clk
00:15:19]} {[%emt 00:00:48]} 23. Rb1 {[%clk 00:15:36]} {[%emt 00:08:31]} Be5
{[%clk 00:15:17]} {[%emt 00:00:31]} 24. d4 {[%clk 00:15:00]} {[%emt 00:01:06]}
Bb8 {[%clk 00:12:52]} {[%emt 00:02:55]} 25. e5 {[%clk 00:13:33]} {[%emt
00:01:56]} Ne8 {[%clk 00:12:47]} {[%emt 00:00:35]} 26. Kd3 {[%clk 00:12:09]}
{[%emt 00:01:55]} f6 {[%clk 00:10:21]} {[%emt 00:02:56]} 27. f4 {[%clk
00:11:58]} {[%emt 00:00:42]} Rb6 {[%clk 00:06:05]} {[%emt 00:04:46]} 28. a4
{[%clk 00:11:13]} {[%emt 00:01:15]} Ra6 {[%clk 00:05:21]} {[%emt 00:01:13]} 29.
h3 {[%clk 00:08:43]} {[%emt 00:03:01]} Bc7 {[%clk 00:02:36]} {[%emt 00:03:15]}
30. g4 {[%clk 00:07:44]} {[%emt 00:01:28]} hxg4 {[%clk 00:02:30]} {[%emt
00:00:36]} 31. hxg4 {[%clk 00:08:07]} {[%emt 00:00:07]} Ba5 {[%clk 00:02:16]}
{[%emt 00:00:45]} 32. b4 {[%clk 00:03:59]} {[%emt 00:04:39]} Bd8 {[%clk
00:01:34]} {[%emt 00:01:09]} 33. Nc3 {[%clk 00:02:37]} {[%emt 00:01:53]} Rc6
{[%clk 00:01:35]} {[%emt 00:00:30]} 34. a5 {[%clk 00:01:38]} {[%emt 00:01:29]}
Rc4 {[%clk 00:01:48]} {[%emt 00:00:16]} 35. Na4 {[%clk 00:01:53]} {[%emt
00:00:15]} 1-0

[Event "Polofinale MCR junioru 2023"]
[Site "Czech Republic"]
[Date "2023.11.12"]
[Round "2.26"]
[White "Veny, Jaume"]
[Black "Kulhanek, Jachym"]
[Result "1/2-1/2"]
[TimeControl "90 min per 40 moves + 15 min + 30 sec / move from move 1"]
[WhiteFideId "397792"]
[BlackFideId "23716193"]
[WhiteElo "1729"]
[BlackElo "2056"]

1. e4 {[%clk 01:30:52]} {[%emt 00:00:07]} c5 {[%clk 01:30:56]} {[%emt
00:00:04]} 2. Nf3 {[%clk 01:31:06]} {[%emt 00:00:16]} d6 {[%clk 01:31:22]}
{[%emt 00:00:04]} 3. d4 {[%clk 01:31:21]} {[%emt 00:00:15]} cxd4 {[%clk
01:31:46]} {[%emt 00:00:07]} 4. Nxd4 {[%clk 01:31:47]} {[%emt 00:00:04]} Nf6
{[%clk 01:32:12]} {[%emt 00:00:04]} 5. Nc3 {[%clk 01:32:09]} {[%emt 00:00:08]}
g6 {[%clk 01:32:38]} {[%emt 00:00:04]} 6. Be3 {[%clk 01:32:32]} {[%emt
00:00:07]} Bg7 {[%clk 01:33:04]} {[%emt 00:00:04]} 7. f3 {[%clk 01:32:42]}
{[%emt 00:00:20]} O-O {[%clk 01:33:30]} {[%emt 00:00:05]} 8. Qd2 {[%clk
01:32:26]} {[%emt 00:00:46]} Nc6 {[%clk 01:33:34]} {[%emt 00:00:26]} 9. g4
{[%clk 01:32:41]} {[%emt 00:00:15]} h5 {[%clk 01:32:37]} {[%emt 00:01:27]} 10.
gxh5 {[%clk 01:28:13]} {[%emt 00:04:58]} Nxh5 {[%clk 01:32:48]} {[%emt
00:00:19]} 11. O-O-O {[%clk 01:27:18]} {[%emt 00:01:24]} Qa5 {[%clk 01:26:57]}
{[%emt 00:06:21]} 12. Kb1 {[%clk 01:18:46]} {[%emt 00:09:02]} Nxd4 {[%clk
01:20:09]} {[%emt 00:07:19]} 13. Bxd4 {[%clk 01:18:46]} {[%emt 00:00:30]} Bxd4
{[%clk 01:10:45]} {[%emt 00:09:54]} 14. Qxd4 {[%clk 01:19:05]} {[%emt
00:00:10]} Be6 {[%clk 01:10:59]} {[%emt 00:00:17]} 15. Nd5 {[%clk 01:04:33]}
{[%emt 00:15:02]} Bxd5 {[%clk 01:08:45]} {[%emt 00:02:45]} 16. exd5 {[%clk
01:02:34]} {[%emt 00:02:29]} Rac8 {[%clk 00:50:21]} {[%emt 00:18:54]} 17. f4
{[%clk 00:46:39]} {[%emt 00:16:25]} Qc5 {[%clk 00:47:57]} {[%emt 00:02:53]} 18.
c3 {[%clk 00:45:19]} {[%emt 00:01:50]} Qxd4 {[%clk 00:46:56]} {[%emt 00:01:31]}
19. Rxd4 {[%clk 00:45:42]} {[%emt 00:00:06]} Kg7 {[%clk 00:45:42]} {[%emt
00:01:44]} 20. Rg1 {[%clk 00:40:41]} {[%emt 00:05:31]} Kf6 {[%clk 00:45:20]}
{[%emt 00:00:52]} 21. Be2 {[%clk 00:38:35]} {[%emt 00:02:36]} Rh8 {[%clk
00:39:54]} {[%emt 00:05:55]} 22. Bg4 {[%clk 00:35:49]} {[%emt 00:03:16]} Rc5
{[%clk 00:36:42]} {[%emt 00:03:42]} 23. Kc2 {[%clk 00:35:18]} {[%emt 00:01:01]}
Ng7 {[%clk 00:31:04]} {[%emt 00:06:08]} 24. h3 {[%clk 00:32:32]} {[%emt
00:03:16]} Nf5 {[%clk 00:29:24]} {[%emt 00:02:11]} 25. Bxf5 {[%emt 00:01:19]}
Kxf5 {[%clk 00:28:42]} {[%emt 00:00:01]} 26. Rg5+ {[%clk 00:32:59]} {[%emt
00:00:23]} Kf6 {[%clk 00:29:07]} {[%emt 00:00:06]} 27. Rg3 {[%clk 00:33:24]}
{[%emt 00:00:04]} Rh5 {[%clk 00:23:39]} {[%emt 00:05:58]} 28. c4 {[%clk
00:28:00]} {[%emt 00:05:55]} b5 {[%clk 00:20:56]} {[%emt 00:03:12]} 29. b3
{[%clk 00:28:21]} {[%emt 00:00:09]} b4 {[%clk 00:20:19]} {[%emt 00:01:07]} 30.
Re3 {[%clk 00:23:30]} {[%emt 00:05:20]} Rc8 {[%clk 00:14:25]} {[%emt 00:06:25]}
31. Kd2 {[%clk 00:20:35]} {[%emt 00:03:26]} Rch8 {[%clk 00:13:31]} {[%emt
00:01:23]} 32. Rdd3 {[%clk 00:20:59]} {[%emt 00:00:05]} Rh4 {[%clk 00:11:48]}
{[%emt 00:02:14]} 33. Rf3 {[%clk 00:20:45]} {[%emt 00:00:45]} Kf5 {[%clk
00:11:32]} {[%emt 00:00:44]} 34. Rde3 {[%clk 00:20:23]} {[%emt 00:00:52]} Re8
{[%clk 00:11:42]} {[%emt 00:00:20]} 35. Ke2 {[%clk 00:20:12]} {[%emt 00:00:41]}
f6 {[%clk 00:06:17]} {[%emt 00:05:54]} 36. Re6 {[%clk 00:10:14]} {[%emt
00:10:28]} Rxf4 {[%clk 00:05:38]} {[%emt 00:01:09]} 37. Rfe3 {[%clk 00:10:16]}
{[%emt 00:00:27]} Rd4 {[%clk 00:04:03]} {[%emt 00:02:05]} 38. Rxe7 {[%clk
00:09:21]} {[%emt 00:01:25]} Rxe7 {[%clk 00:04:24]} {[%emt 00:00:09]} 39. Rxe7
{[%clk 00:09:48]} {[%emt 00:00:03]} Re4+ {[%clk 00:04:27]} {[%emt 00:00:28]} 40.
Rxe4 {[%clk 00:10:14]} {[%emt 00:00:04]} Kxe4 {[%clk 00:04:50]} {[%emt
00:00:06]} 41. h4 {[%clk 00:05:38]} {[%emt 00:05:06]} Ke5 {[%emt 00:00:46]}
1/2-1/2